bitfinex/quotes_SOLUSD_20241215
["timestamp","ask_amount","ask_price","bid_price","bid_amount"]
[1734281005920,24.027864,222.0,221.94,7.69453944]
[1734281006236,24.45408104,222.03,221.93,7.69453944]
[1734281006237,44.027864,222.02,221.93,7.69453944]
[1734281007609,44.027864,222.02,221.92,7.69453944]
[1734281008309,61.589264,222.02,221.88,1.5921]
[1734281008512,24.027864,221.99,221.85,7.69453944]
[1734281008719,25.561264,221.99,221.85,7.69453944]
[1734281009244,24.027864,221.95,221.8,6.94312485]
[1734281009410,5.0,221.98,221.81,7.69453944]
[1734281009411,24.027864,221.91,221.81,7.69453944]
[1734281010643,24.027864,221.91,221.8,7.69453944]
[1734281011743,24.027864,221.91,221.79,7.69453944]
[1734281013348,24.027864,221.91,221.8,0.79]
[1734281013866,24.027864,221.91,221.8,8.48453944]
[1734281014146,24.027864,221.91,221.8,0.79]
[1734281014643,0.12549,221.88,221.8,0.79]
[1734281016721,0.12549,221.85,221.8,0.79]
[1734281016926,24.027864,221.85,221.76,7.69453944]
[1734281017151,24.027864,221.85,221.78,0.79]
[1734281018558,24.027864,221.85,221.77,7.69453944]
[1734281020159,23.902374,221.85,221.79,7.69453944]
[1734281020543,23.776884,221.85,221.79,7.69453944]
[1734281020930,23.776884,221.85,221.78,8.48453944]
[1734281021135,23.776884,221.85,221.78,0.79]
[1734281021632,0.12549,221.84,221.78,0.79]
[1734281022525,0.25098,221.84,221.78,0.79]
[1734281022730,43.902374,221.79,221.78,0.79]
[1734281023034,44.027864,221.79,221.78,0.3003853]
[1734281023270,24.027864,221.78,221.75,0.5458747]
[1734281024525,23.902374,221.78,221.75,0.5458747]
[1734281026533,23.776884,221.78,221.75,0.5458747]
[1734281028653,20.0,221.85,221.75,0.5458747]
[1734281028838,20.0,221.85,221.76,7.69453944]
[1734281029433,1.5228,221.87,221.77,7.69453944]
[1734281029632,1.5228,221.87,221.78,7.69453944]
[1734281029941,0.12549,221.86,221.77,7.69453944]
[1734281030127,0.12549,221.86,221.79,7.69453944]
[1734281030333,0.12549,221.86,221.78,7.69453944]
[1734281030837,24.027864,221.86,221.78,7.69453944]
[1734281031037,24.027864,221.86,221.77,7.69453944]
[1734281031950,24.027864,221.86,221.75,0.5458747]
[1734281031951,24.027864,221.86,221.79,7.69453944]
[1734281032365,24.027864,221.86,221.75,0.5458747]
[1734281032656,24.027864,221.86,221.76,7.69453944]
[1734281033555,24.027864,221.86,221.77,7.69453944]
[1734281034262,24.027864,221.86,221.78,7.69453944]
[1734281034476,24.027864,221.86,221.75,0.5458747]
[1734281034638,24.027864,221.86,221.76,7.69453944]
[1734281035146,24.027864,221.86,221.75,8.24041414]
[1734281037158,0.25098,221.82,221.75,0.5458747]
[1734281037370,24.027864,221.82,221.75,8.24041414]
[1734281037847,24.027864,221.82,221.76,7.69453944]
[1734281038740,24.027864,221.82,221.75,8.24041414]
[1734281041048,24.027864,221.82,221.76,15.37453944]
[1734281042469,24.027864,221.82,221.76,7.69453944]
[1734281042860,24.027864,221.82,221.75,0.5458747]
[1734281043043,24.027864,221.82,221.75,15.92041414]
[1734281043244,24.027864,221.82,221.76,7.69453944]
[1734281044484,24.027864,221.82,221.75,8.2258747]
[1734281045074,24.027864,221.82,221.75,15.92041414]
[1734281045648,24.027864,221.82,221.76,7.69453944]
[1734281047292,24.027864,221.82,221.75,0.5458747]
[1734281047293,23.776884,221.82,221.78,7.69453944]
[1734281047454,1.5228,221.87,221.79,7.69453944]
[1734281047650,20.0,221.85,221.79,7.69453944]
[1734281048164,0.12549,221.86,221.79,7.69453944]
[1734281048485,1.5228,221.87,221.78,7.69453944]
[1734281048681,23.776884,221.86,221.8,7.69453944]
[1734281049189,0.12549,221.86,221.8,7.69453944]
[1734281049489,20.12549,221.86,221.8,7.69453944]
[1734281049684,18.961739,221.89,221.8,7.69453944]
[1734281049981,0.12549,221.88,221.8,7.69453944]
[1734281050201,24.027864,221.88,221.8,7.69453944]
[1734281051051,24.027864,221.88,221.82,7.69453944]
[1734281051555,24.027864,221.88,221.77,1.6338]
[1734281051757,24.027864,221.88,221.79,7.69453944]
[1734281052683,24.027864,221.88,221.8,0.39]
[1734281053767,24.027864,221.88,221.79,7.69453944]
[1734281053963,24.027864,221.88,221.8,7.69453944]
[1734281056473,24.027864,221.88,221.81,7.69453944]
[1734281058581,24.027864,221.88,221.81,7.95650404]
[1734281059369,24.027864,221.88,221.81,0.2619646]
[1734281059570,24.027864,221.88,221.81,7.5619646]
[1734281061880,24.027864,221.88,221.81,0.2619646]
[1734281064281,23.776884,221.9,221.82,7.69453944]
[1734281064590,1.82930736,221.91,221.83,7.69453944]
[1734281064591,0.12549,221.89,221.83,7.69453944]
[1734281064790,0.25098,221.9,221.83,7.69453944]
[1734281065486,0.25098,221.9,221.84,7.69453944]
[1734281065673,23.776884,221.91,221.84,7.69453944]
[1734281065985,12.8265,221.97,221.87,7.69453944]
[1734281066288,12.8265,221.97,221.88,7.69453944]
[1734281066496,0.12549,221.96,221.88,7.69453944]
[1734281067291,23.902374,221.96,221.88,7.69453944]
[1734281067683,0.12549,221.95,221.87,7.69453944]
[1734281068894,23.776884,221.92,221.87,7.69453944]
[1734281071774,23.776884,221.92,221.84,7.69453944]
[1734281072805,20.0,221.93,221.86,7.69453944]
[1734281072994,20.0,221.94,221.86,7.69453944]
[1734281073197,23.776884,221.93,221.86,7.69453944]
[1734281073907,23.776884,221.93,221.86,7.95650404]
[1734281078488,0.12549,221.92,221.86,0.2619646]
[1734281081431,11.2631,221.97,221.89,7.69453944]
[1734281081922,0.12549,221.96,221.89,7.69453944]
[1734281082097,0.12549,221.96,221.9,7.69453944]
[1734281082495,23.902374,221.96,221.9,7.69453944]
[1734281083839,23.902374,221.96,221.91,7.69453944]
[1734281086229,23.902374,221.96,221.86,0.93786752]
[1734281086230,23.902374,221.96,221.9,7.69453944]
[1734281088608,23.902374,221.96,221.89,7.69453944]
[1734281090226,23.902374,221.96,221.9,7.69453944]
[1734281092103,23.776884,221.97,221.9,7.69453944]
[1734281092727,0.12549,221.96,221.91,7.69453944]
[1734281093606,0.12549,221.96,221.9,7.69453944]
[1734281096218,20.0,221.96,221.92,7.69453944]
[1734281098050,20.0,221.96,221.91,7.69453944]
[1734281100255,20.0,221.96,221.9,7.69453944]
[1734281100556,23.776884,221.95,221.88,7.69453944]
[1734281101363,0.12549,221.94,221.86,1.9104646]
[1734281101549,0.25098,221.94,221.87,7.67]
[1734281102158,0.25098,221.94,221.88,7.69453944]
[1734281104266,23.776884,221.95,221.9,7.69453944]
[1734281110761,23.776884,221.95,221.89,7.69453944]
[1734281111085,0.12549,221.94,221.88,7.69453944]
[1734281111290,0.25098,221.94,221.87,7.69453944]
[1734281111452,0.25098,221.94,221.88,7.69453944]
[1734281112286,0.25098,221.94,221.86,7.95650404]
[1734281112474,0.25098,221.94,221.87,0.39]
[1734281112775,0.25098,221.94,221.86,7.95650404]
[1734281113483,0.25098,221.94,221.86,0.2619646]
[1734281113784,23.902374,221.88,221.86,0.2619646]
[1734281113949,24.027864,221.88,221.86,0.2619646]
[1734281114592,23.776884,221.88,221.86,0.2619646]
[1734281115789,0.25098,221.87,221.86,0.2619646]
[1734281119299,0.25098,221.87,221.86,6.46e-05]
[1734281119493,24.027864,221.87,221.86,6.46e-05]
[1734281121271,0.25098,221.8,221.75,0.39]
[1734281121481,0.12549,221.77,221.75,0.39]
[1734281121813,24.027864,221.77,221.75,0.39]
[1734281122099,24.027864,221.77,221.7,7.69453944]
[1734281122705,24.027864,221.77,221.69,1.5545]
[1734281122706,24.027864,221.77,221.69,7.69453944]
[1734281122872,24.027864,221.77,221.7,7.33]
[1734281123470,24.027864,221.77,221.69,7.69453944]
[1734281123909,23.776884,221.73,221.64,8.3722246]
[1734281124113,23.776884,221.73,221.68,7.69453944]
[1734281124322,0.12549,221.72,221.66,0.7]
[1734281124609,0.25098,221.72,221.66,8.39453944]
[1734281125892,0.25098,221.72,221.66,0.7]
[1734281126097,0.25098,221.72,221.65,7.69453944]
[1734281127316,0.25098,221.72,221.67,7.69453944]
[1734281127483,0.25098,221.72,221.66,7.69453944]
[1734281127874,0.25098,221.72,221.65,7.69453944]
[1734281128303,0.25098,221.72,221.66,7.69453944]
[1734281128497,59.82663344,221.95,221.64,8.3722246]
[1734281128498,1.5364,221.82,221.7,7.69453944]
[1734281128813,0.12549,221.8,221.7,7.69453944]
[1734281129173,0.25098,221.8,221.7,7.69453944]
[1734281129711,23.902374,221.76,221.69,7.69453944]
[1734281130276,0.12549,221.75,221.69,7.69453944]
[1734281131312,0.12549,221.75,221.68,7.69453944]
[1734281132212,0.12549,221.75,221.69,7.69453944]
[1734281132981,0.12549,221.75,221.67,7.69453944]
[1734281134110,23.902374,221.76,221.7,7.69453944]
[1734281134595,23.902374,221.76,221.69,7.69453944]
[1734281134798,23.902374,221.78,221.68,7.69453944]
[1734281135297,0.12549,221.77,221.68,7.69453944]
[1734281137414,0.12549,221.77,221.69,7.69453944]
[1734281139409,0.12549,221.77,221.64,8.3722246]
[1734281139626,0.12549,221.77,221.68,7.69453944]
[1734281140616,0.12549,221.77,221.69,7.69453944]
[1734281141022,0.12549,221.77,221.71,7.69453944]
[1734281141219,0.12549,221.77,221.72,7.69453944]
[1734281143005,0.12549,221.77,221.71,7.69453944]
[1734281145928,0.12549,221.77,221.7,7.69453944]
[1734281146913,0.12549,221.77,221.71,7.69453944]
[1734281147234,23.902374,221.78,221.72,7.69453944]
[1734281147731,24.027864,221.8,221.72,7.69453944]
[1734281147935,24.027864,221.8,221.66,0.67652725]
[1734281147936,24.027864,221.8,221.75,7.69453944]
[1734281148823,24.027864,221.8,221.73,7.69453944]
[1734281149826,24.027864,221.8,221.72,7.69453944]
[1734281152243,24.027864,221.8,221.65,30.77815776]
[1734281152537,24.027864,221.76,221.66,7.69453944]
[1734281153117,20.0,221.75,221.66,7.69453944]
[1734281153339,23.902374,221.74,221.66,7.69453944]
[1734281154048,23.902374,221.74,221.67,7.69453944]
[1734281154255,23.902374,221.74,221.68,7.69453944]
[1734281154844,23.902374,221.74,221.67,7.69453944]
[1734281156324,23.902374,221.74,221.66,7.69453944]
[1734281156626,23.902374,221.74,221.64,8.3722246]
[1734281156627,0.12549,221.73,221.65,7.69453944]
[1734281157742,0.12549,221.73,221.67,7.69453944]
[1734281157917,0.12549,221.73,221.66,7.69453944]
[1734281160030,0.12549,221.73,221.65,7.69453944]
[1734281160225,0.12549,221.73,221.64,8.24796404]
[1734281160442,0.12549,221.73,221.65,5.39]
[1734281160634,1.5359,221.81,221.7,7.69453944]
[1734281160842,12.8072,221.81,221.71,7.69453944]
[1734281161049,12.8072,221.81,221.72,7.69453944]
[1734281161344,12.8072,221.81,221.71,7.69453944]
[1734281161345,0.12549,221.8,221.71,7.69453944]
[1734281161550,12.8072,221.81,221.71,7.69453944]
[1734281161924,23.902374,221.8,221.71,7.69453944]
[1734281162246,23.902374,221.8,221.67,1.6425]
[1734281162247,0.12549,221.79,221.67,1.6425]
[1734281162451,0.12549,221.79,221.72,7.68]
[1734281162956,0.12549,221.79,221.72,15.37453944]
[1734281163518,0.12549,221.79,221.72,7.68]
[1734281164541,0.12549,221.79,221.72,15.37453944]
[1734281169322,0.12549,221.79,221.72,7.68]
[1734281169642,20.0,221.77,221.72,7.68]
[1734281169852,24.027864,221.76,221.72,7.68]
[1734281174132,1.5359,221.81,221.75,7.69453944]
[1734281174333,11.2689,221.85,221.76,7.69453944]
[1734281174639,11.2689,221.85,221.77,7.69453944]
[1734281175048,0.12549,221.84,221.78,7.69453944]
[1734281175247,11.2689,221.85,221.78,7.69453944]
[1734281175451,1.5929,221.86,221.78,7.69453944]
[1734281176060,20.12549,221.85,221.78,7.69453944]
[1734281176556,0.12549,221.83,221.78,7.69453944]
[1734281176960,0.12549,221.84,221.79,7.69453944]
[1734281177161,11.2672,221.89,221.81,7.69453944]
[1734281177351,11.2672,221.89,221.82,7.69453944]
[1734281177849,11.2672,221.89,221.8,7.69453944]
[1734281178258,20.0,221.86,221.81,7.69453944]
[1734281178456,0.12549,221.89,221.83,7.69453944]
[1734281178642,1.6015,221.91,221.84,7.69453944]
[1734281178834,11.2648,221.93,221.85,7.69453944]
[1734281178835,13.9529748,221.93,221.85,7.69453944]
[1734281179171,13.9529748,221.93,221.84,7.69453944]
[1734281179841,0.12549,221.92,221.84,7.69453944]
[1734281180658,0.12549,221.91,221.79,20.0]
[1734281180851,0.12549,221.91,221.82,7.69453944]
[1734281181050,0.12549,221.91,221.83,7.69453944]
[1734281183871,0.12549,221.91,221.79,20.0]
[1734281183872,0.12549,221.91,221.84,7.69453944]
[1734281184585,0.12549,221.91,221.82,7.69453944]
[1734281185769,0.12549,221.91,221.83,7.69453944]
[1734281186258,0.12549,221.91,221.84,7.69453944]
[1734281186484,0.12549,221.93,221.86,7.69453944]
[1734281186786,20.0,221.94,221.86,7.69453944]
[1734281187086,20.0,221.94,221.87,7.69453944]
[1734281187287,1.6015,221.96,221.87,7.69453944]
[1734281187496,11.263,221.97,221.88,7.69453944]
[1734281187668,0.12549,221.96,221.89,7.69453944]
[1734281188691,0.12549,221.95,221.89,7.69453944]
[1734281188859,0.12549,221.95,221.88,7.69453944]
[1734281189362,23.902374,221.96,221.88,7.69453944]
[1734281190859,23.902374,221.96,221.86,7.69453944]
[1734281191578,23.902374,221.96,221.87,7.69453944]
[1734281191969,23.902374,221.96,221.88,7.69453944]
[1734281192787,1.81258669,222.02,221.84,1.5368]
[1734281192788,20.0,221.95,221.9,7.69453944]
[1734281193405,0.12549,221.97,221.9,7.69453944]
[1734281193705,20.0,221.96,221.89,7.69453944]
[1734281194882,23.902374,221.95,221.87,7.69453944]
[1734281196687,23.902374,221.95,221.88,7.69453944]
[1734281197057,20.0,221.96,221.9,7.69453944]
[1734281197257,13.02022984,222.03,221.95,7.69453944]
[1734281197454,11.2601,222.03,221.95,7.69453944]
[1734281197693,11.2601,222.03,221.9,6.5568]
[1734281197694,11.2601,222.03,221.96,7.69453944]
[1734281198188,0.12549,222.02,221.94,7.69453944]
[1734281198554,11.2601,222.03,221.94,7.69453944]
[1734281198987,23.776884,222.02,221.94,7.69453944]
[1734281199302,23.776884,222.02,221.96,7.69453944]
[1734281199597,11.2601,222.03,221.92,1.5242]
[1734281199598,20.0,222.04,221.97,7.69453944]
[1734281199895,20.0,222.02,221.97,7.69453944]
[1734281200381,20.0,222.02,221.96,7.69453944]
[1734281201186,20.0,222.02,221.97,7.69453944]
[1734281201380,11.2578,222.07,221.99,7.69453944]
[1734281202185,0.12549,222.06,221.99,7.69453944]
[1734281202734,23.902374,222.06,221.99,7.69453944]
[1734281203194,23.902374,222.06,221.98,7.69453944]
[1734281203375,23.902374,222.06,221.97,7.69453944]
[1734281203875,23.902374,222.06,221.98,7.69453944]
[1734281204465,23.902374,222.06,221.92,2.19990361]
[1734281204466,0.12549,222.05,221.97,7.69453944]
[1734281204693,0.12549,222.05,221.96,7.69453944]
[1734281205566,0.12549,222.05,221.95,7.69453944]
[1734281205872,0.12549,222.05,221.94,7.69453944]
[1734281206081,23.902374,222.03,221.93,20.0]
[1734281206387,23.902374,222.03,221.94,7.69453944]
[1734281206593,23.902374,222.03,221.95,7.69453944]
[1734281206594,0.12549,222.02,221.95,7.69453944]
[1734281207477,0.12549,222.02,221.96,7.69453944]
[1734281207991,13.98723788,222.08,221.96,7.69453944]
[1734281208183,20.0,222.05,221.98,7.69453944]
[1734281208499,11.2574,222.08,222.0,7.69453944]
[1734281209363,23.902374,222.07,222.0,7.69453944]
[1734281210796,11.2574,222.08,222.0,7.69453944]
[1734281210973,31.2554,222.12,222.02,7.69453944]
[1734281211174,20.0,222.1,222.02,7.69453944]
[1734281211696,20.12549,222.09,222.0,7.69453944]
[1734281211879,0.12549,222.06,221.98,7.69453944]
[1734281212076,23.902374,222.06,221.98,7.69453944]
[1734281213284,23.902374,222.06,222.0,7.69453944]
[1734281214487,20.0,222.07,222.01,7.69453944]
[1734281215596,20.0,222.07,221.94,20.0]
[1734281215597,23.902374,222.06,221.94,20.0]
[1734281215796,23.902374,222.06,221.98,7.69453944]
[1734281220207,23.902374,222.06,221.99,7.69453944]
[1734281220986,23.902374,222.06,221.98,7.69453944]
[1734281221307,23.902374,222.06,221.96,7.69453944]
[1734281221308,0.12549,222.05,221.96,7.69453944]
[1734281222326,23.902374,222.04,221.96,7.69453944]
[1734281223929,0.12549,222.03,221.93,20.0]
[1734281224094,0.12549,222.03,221.94,7.69453944]
[1734281226093,0.12549,222.03,221.95,7.69453944]
[1734281226824,0.12549,222.03,221.94,7.69453944]
[1734281228220,0.12549,222.0,221.9,6.5568]
[1734281228520,0.12549,222.0,221.92,7.69453944]
[1734281228829,0.12549,222.0,221.93,7.69453944]
[1734281229029,0.12549,222.0,221.9,6.5568]
[1734281229217,0.12549,222.0,221.92,7.69453944]
[1734281229735,0.12549,222.0,221.93,7.69453944]
[1734281231028,0.12549,222.0,221.94,7.69453944]
[1734281231326,23.776884,222.01,221.96,7.69453944]
[1734281231534,11.2586,222.06,221.97,7.69453944]
[1734281231906,0.12549,222.05,221.97,7.69453944]
[1734281233035,23.902374,222.05,221.97,7.69453944]
[1734281233497,23.902374,222.05,221.96,7.69453944]
[1734281234335,23.902374,222.05,221.97,7.69453944]
[1734281234901,23.902374,222.05,221.99,0.36]
[1734281236340,23.902374,222.05,222.0,7.69453944]
[1734281236637,23.902374,222.05,222.0,8.05453944]
[1734281236936,23.902374,222.05,222.0,0.36]
[1734281237132,1.5593,222.08,222.01,7.69453944]
[1734281237443,1.5593,222.08,222.02,7.69453944]
[1734281237745,0.12549,222.09,222.03,7.69453944]
[1734281238298,24.027864,222.09,222.01,0.36]
[1734281238501,24.027864,222.09,222.02,8.05453944]
[1734281239441,24.027864,222.09,222.02,7.69453944]
[1734281239745,24.027864,222.09,222.01,7.69453944]
[1734281240949,24.027864,222.09,222.0,7.69453944]
[1734281241235,24.027864,222.09,222.01,7.69453944]
[1734281242352,24.027864,222.09,222.03,0.36]
[1734281242839,24.027864,222.09,222.0,7.69453944]
[1734281243340,24.027864,222.09,222.01,0.36]
[1734281243519,24.027864,222.09,222.02,7.69453944]
[1734281244337,23.902374,222.09,222.03,15.01453944]
[1734281244945,23.902374,222.09,222.03,7.32]
[1734281249643,11.5618,222.21,222.08,7.69453944]
[1734281249844,11.5618,222.21,222.11,7.69453944]
[1734281250358,0.12549,222.2,222.11,7.69453944]
[1734281250857,0.12549,222.17,222.11,7.69453944]
[1734281251037,23.776884,222.17,222.11,7.69453944]
[1734281251870,11.5618,222.21,222.12,7.69453944]
[1734281252358,11.5618,222.21,222.11,7.69453944]
[1734281252730,0.12549,222.2,222.11,7.69453944]
[1734281252934,0.25098,222.2,222.12,7.69453944]
[1734281253642,24.027864,222.2,222.13,7.69453944]
[1734281253949,24.027864,222.2,222.12,7.69453944]
[1734281255761,24.027864,222.2,222.13,7.69453944]
[1734281256054,10.0,222.21,222.13,7.69453944]
[1734281256259,10.0,222.21,222.08,0.67520508]
[1734281256260,10.0,222.21,222.14,7.69453944]
[1734281256473,10.0,222.21,222.08,0.67520508]
[1734281256474,11.37659,222.2,222.08,0.67520508]
[1734281256756,0.12549,222.19,222.08,7.69453944]
[1734281256922,0.12549,222.19,222.09,7.69453944]
[1734281257367,0.12549,222.19,222.1,7.69453944]
[1734281257656,0.12549,222.18,222.1,7.69453944]
[1734281258359,0.12549,222.18,222.09,7.69453944]
[1734281259252,23.902374,222.19,222.11,7.69453944]
[1734281260563,23.902374,222.19,222.1,7.69453944]
[1734281260767,23.902374,222.19,222.05,1.6203]
[1734281260768,23.902374,222.17,222.05,1.6203]
[1734281260970,0.12549,222.16,222.05,1.6203]
[1734281261157,0.12549,222.16,222.05,9.31483944]
[1734281261941,24.027864,222.13,222.04,6.6334]
[1734281262248,24.027864,222.13,222.03,7.32]
[1734281262969,20.0,222.1,222.03,7.32]
[1734281265670,23.902374,222.09,222.03,7.32]
[1734281269401,11.254,222.15,222.07,7.69453944]
[1734281269557,11.254,222.15,222.09,7.69453944]
[1734281269757,11.2519,222.19,222.11,7.69453944]
[1734281271083,24.027864,222.18,222.1,7.69453944]
[1734281271483,24.027864,222.18,222.11,7.69453944]
[1734281271983,24.027864,222.18,222.1,7.69453944]
[1734281273694,24.027864,222.18,222.05,0.67528101]
[1734281273695,24.027864,222.18,222.09,7.69453944]
[1734281275076,24.027864,222.18,222.05,0.67528101]
[1734281275077,24.027864,222.16,222.07,7.69453944]
[1734281275790,24.027864,222.16,222.04,1.6223]
[1734281275791,24.027864,222.16,222.06,7.69453944]
[1734281276464,11.2536,222.15,222.06,7.69453944]
[1734281276659,24.027864,222.14,222.03,15.01453944]
[1734281277271,24.027864,222.14,222.05,7.69453944]
[1734281277658,0.12549,222.12,222.04,7.69453944]
[1734281277859,24.027864,222.12,222.03,15.01453944]
[1734281278064,24.027864,222.12,222.03,7.32]
[1734281278460,24.027864,222.12,222.03,15.01453944]
[1734281279572,24.027864,222.12,222.03,7.69453944]
[1734281280681,0.12549,222.1,222.01,7.69453944]
[1734281280990,24.027864,222.1,222.01,7.69453944]
[1734281281173,24.027864,222.1,222.0,7.69453944]
[1734281282672,24.027864,222.1,221.99,9.21263944]
[1734281282898,0.12549,222.05,221.93,1.5181]
[1734281283193,0.12549,222.05,221.96,7.69453944]
[1734281284090,0.12549,222.07,221.96,7.69453944]
[1734281284285,0.12549,222.05,221.96,7.69453944]
[1734281286302,0.12549,222.05,221.95,7.69453944]
[1734281287316,0.12549,222.05,221.96,7.69453944]
[1734281287814,0.12549,222.05,221.97,7.69453944]
[1734281288304,0.12549,222.05,221.99,7.69453944]
[1734281288506,23.776884,222.06,222.01,7.69453944]
[1734281289113,23.776884,222.06,221.99,7.69453944]
[1734281289985,23.776884,222.06,221.98,7.69453944]
[1734281292999,0.12549,222.05,221.95,20.0]
[1734281293317,0.12549,222.05,221.96,7.69453944]
[1734281293516,0.12549,222.03,221.93,1.5181]
[1734281293700,0.12549,222.02,221.93,7.69453944]
[1734281295223,23.902374,222.03,221.97,7.69453944]
[1734281296098,23.902374,222.03,221.96,7.69453944]
[1734281297117,23.902374,222.03,221.95,7.69453944]
[1734281297329,23.902374,222.03,221.96,7.69453944]
[1734281297524,23.902374,222.03,221.9,20.67572788]
[1734281297525,23.902374,222.03,221.97,7.69453944]
[1734281298032,23.776884,222.07,222.0,7.69453944]
[1734281298229,11.2576,222.08,222.01,7.69453944]
[1734281299231,0.12549,222.07,222.01,7.69453944]
[1734281299607,23.902374,222.07,222.0,7.69453944]
[1734281299807,11.2576,222.08,222.0,7.69453944]
[1734281300217,11.2576,222.08,222.01,7.69453944]
[1734281300711,0.12549,222.07,221.99,7.69453944]
[1734281300907,0.12549,222.06,221.97,20.0]
[1734281301140,0.12549,222.06,221.99,7.69453944]
[1734281301703,0.12549,222.06,221.98,7.69453944]
[1734281301908,0.12549,222.06,221.97,27.69453944]
[1734281302109,0.12549,222.06,221.97,7.69453944]
[1734281303145,0.12549,222.06,221.96,7.69453944]
[1734281303727,1.6147,222.1,221.9,1.5143]
[1734281303728,24.027864,222.03,221.9,1.5143]
[1734281303958,0.12549,221.99,221.9,9.20883944]
[1734281304251,23.902374,221.99,221.91,7.69453944]
[1734281304457,23.902374,221.99,221.9,1.5143]
[1734281304458,23.902374,221.99,221.92,7.69453944]
[1734281305629,23.402374,221.99,221.92,7.69453944]
[1734281306513,11.2606,222.02,221.94,7.69453944]
[1734281306719,11.2584,222.06,221.96,7.69453944]
[1734281307322,11.2584,222.06,221.97,7.69453944]
[1734281308115,11.2584,222.06,221.92,20.0]
[1734281308116,24.027864,222.05,221.92,20.0]
[1734281308319,24.027864,222.05,221.95,7.69453944]
[1734281309461,24.027864,222.05,221.96,7.69453944]
[1734281309821,24.027864,222.05,221.98,7.67]
[1734281315246,23.776884,222.05,221.98,15.36453944]
[1734281315555,23.902374,222.09,222.02,7.69453944]
[1734281315748,23.902374,222.09,222.0,7.69453944]
[1734281315940,23.776884,222.09,222.0,7.69453944]
[1734281316135,0.12549,222.08,222.0,7.69453944]
[1734281316641,23.776884,222.09,222.01,7.69453944]
[1734281316844,23.776884,222.09,222.02,7.69453944]
[1734281317149,12.8713,222.1,222.02,7.69453944]
[1734281318153,12.8713,222.1,222.01,7.69453944]
[1734281319256,24.027864,222.09,221.99,7.69453944]
[1734281319950,23.902374,222.07,221.99,7.69453944]
[1734281320127,23.902374,222.07,221.98,15.36453944]
[1734281320461,23.902374,222.07,221.99,7.69453944]
[1734281320752,23.902374,222.07,221.98,15.36453944]
[1734281320954,0.12549,222.06,221.98,7.67]
[1734281322656,20.0,222.08,221.99,7.69453944]
[1734281322894,20.0,222.07,221.99,7.69453944]
[1734281324640,23.902374,222.06,221.98,7.67]
[1734281331274,23.902374,222.06,221.97,7.69453944]
[1734281331455,23.902374,222.06,221.97,6.23553944]
[1734281331662,11.2587,222.05,221.97,6.23553944]
[1734281331978,20.0,222.01,221.93,7.69453944]
[1734281332143,23.776884,222.0,221.93,7.69453944]
[1734281332342,23.776884,222.0,221.92,7.69453944]
[1734281333470,23.776884,221.98,221.86,7.7085]
[1734281333680,0.25098,221.97,221.86,7.7085]
[1734281333847,20.0,221.95,221.86,7.7085]
[1734281334049,23.776884,221.94,221.86,7.7085]
[1734281334970,23.776884,221.94,221.86,1.604]
[1734281336156,23.776884,221.94,221.84,7.69453944]
[1734281338071,0.25098,221.93,221.81,7.778]
[1734281338270,23.776884,221.92,221.81,15.47253944]
[1734281338569,23.776884,221.92,221.82,7.69453944]
[1734281338889,0.25098,221.91,221.82,7.69453944]
[1734281339574,0.25098,221.91,221.81,9.19613944]
[1734281340662,23.776884,221.92,221.85,7.69453944]
[1734281340863,23.902374,221.96,221.87,7.69453944]
[1734281341073,0.12549,221.95,221.86,7.69453944]
[1734281341250,0.12549,221.95,221.85,7.69453944]
[1734281341459,0.12549,221.95,221.86,7.69453944]
[1734281341877,0.12549,221.96,221.86,7.69453944]
[1734281342552,0.12549,221.95,221.86,7.69453944]
[1734281342952,23.776884,221.96,221.87,7.69453944]
[1734281343158,23.776884,221.96,221.88,7.69453944]
[1734281343383,23.776884,221.96,221.89,7.69453944]
[1734281343569,23.776884,221.96,221.9,7.69453944]
[1734281344087,11.2631,221.97,221.9,7.69453944]
[1734281344386,11.2606,222.02,221.91,7.69453944]
[1734281344689,20.0,221.99,221.92,7.69453944]
[1734281344997,11.2606,222.02,221.9,7.69453944]
[1734281345679,23.902374,222.01,221.9,7.69453944]